[Event "Titled Tuesday Blitz May 31 Late 2022"]
[White "Balabayeva, Xeniya"]
[Black "Bibasa, Bob"]
[WhiteFideId "13719688"]
[BlackFideId "10000240"]
[WhiteElo "1941"]
[BlackElo "2032"]
[Result "1-0"]
[Round "11"]
[TimeControl "180+1"]
[Date "2022.06.01"]
[WhiteClock "0:00:35"]
[BlackClock "0:01:02"]

1. d4 {[%clk 0:03:00]}  Nf6 {[%clk 0:03:00]} 2. Bf4 {[%clk 0:02:59]}  b6 {[%clk 0:02:59]} 3. Nf3 {[%clk 0:02:56]}  Bb7 {[%clk 0:02:59]} 4. e3 {[%clk 0:02:55]}  e6 {[%clk 0:03:00]} 5. Nbd2 {[%clk 0:02:54]}  Be7 {[%clk 0:02:59]} 6. Bd3 {[%clk 0:02:53]}  O-O {[%clk 0:02:59]} 7. c3 {[%clk 0:02:52]}  d6 {[%clk 0:02:58]} 8. O-O {[%clk 0:02:50]}  Nbd7 {[%clk 0:02:57]} 9. Bc2 {[%clk 0:02:47]}  c5 {[%clk 0:02:54]} 10. h3 {[%clk 0:02:45]}  d5 {[%clk 0:02:47]} 11. Qe2 {[%clk 0:02:43]}  Ne4 {[%clk 0:02:45]} 12. Nxe4 {[%clk 0:02:35]}  dxe4 {[%clk 0:02:44]} 13. Nd2 {[%clk 0:02:35]}  Nf6 {[%clk 0:02:41]} 14. Be5 {[%clk 0:02:29]}  cxd4 {[%clk 0:02:34]} 15. exd4 {[%clk 0:02:24]}  Rc8 {[%clk 0:02:14]} 16. Nxe4 {[%clk 0:02:14]}  Nxe4 {[%clk 0:02:13]} 17. Bxe4 {[%clk 0:02:13]}  Bxe4 {[%clk 0:02:13]} 18. Qxe4 {[%clk 0:02:13]}  Bf6 {[%clk 0:02:12]} 19. Rfe1 {[%clk 0:02:08]}  Bxe5 {[%clk 0:02:09]} 20. Qxe5 {[%clk 0:02:07]}  Qh4 {[%clk 0:02:05]} 21. Re4 {[%clk 0:02:03]}  Qh6 {[%clk 0:02:05]} 22. Re3 {[%clk 0:02:01]}  Rcd8 {[%clk 0:02:03]} 23. c4 {[%clk 0:01:48]}  Qg6 {[%clk 0:01:55]} 24. Re4 {[%clk 0:01:33]}  h5 {[%clk 0:01:37]} 25. Rc1 {[%clk 0:01:21]}  Rd7 {[%clk 0:01:25]} 26. Re3 {[%clk 0:01:14]}  Rfd8 {[%clk 0:01:18]} 27. Rg3 {[%clk 0:00:49]}  Qh6 {[%clk 0:01:17]} 28. Rd1 {[%clk 0:00:48]}  g6 {[%clk 0:01:08]} 29. Rgd3 {[%clk 0:00:44]}  Qg7 {[%clk 0:01:03]} 30. Qxg7+ {[%clk 0:00:43]}  Kxg7 {[%clk 0:01:03]} 31. f3 {[%clk 0:00:43]}  Kf6 {[%clk 0:01:03]} 32. Kf2 {[%clk 0:00:42]}  e5 {[%clk 0:01:03]} 33. dxe5+ {[%clk 0:00:39]}  Ke6 {[%clk 0:01:00]} 34. Rxd7 {[%clk 0:00:39]}  Rxd7 {[%clk 0:01:00]} 35. Rxd7 {[%clk 0:00:40]}  Kxd7 {[%clk 0:01:01]} 36. Ke3 {[%clk 0:00:40]}  Ke6 {[%clk 0:01:02]} 37. Ke4 {[%clk 0:00:39]}  Ke7 {[%clk 0:01:02]} 38. g4 {[%clk 0:00:39]}  Ke6 {[%clk 0:01:02]} 39. f4 {[%clk 0:00:38]}  h4 {[%clk 0:01:02]} 40. f5+ {[%clk 0:00:38]}  Ke7 {[%clk 0:01:02]} 41. Kd5 {[%clk 0:00:38]}  gxf5 {[%clk 0:01:00]} 42. gxf5 {[%clk 0:00:38]}  Kd7 {[%clk 0:01:01]} 43. e6+ {[%clk 0:00:38]}  fxe6+ {[%clk 0:01:01]} 44. fxe6+ {[%clk 0:00:37]}  Ke7 {[%clk 0:01:01]} 45. Ke5 {[%clk 0:00:37]}  a6 {[%clk 0:01:02]} 46. b4 {[%clk 0:00:35]} 1-0


[Site "https://www.chess.com"]

[Event "Titled Tuesday Blitz May 31 Late 2022"]
[White "Bortnyk, Olexandr"]
[Black "Sjugirov, Sanan"]
[WhiteFideId "14120828"]
[BlackFideId "4189302"]
[WhiteElo "2723"]
[BlackElo "2602"]
[Result "1/2-1/2"]
[Round "11"]
[TimeControl "180+1"]
[Date "2022.05.31"]
[WhiteClock "0:00:05"]
[BlackClock "0:00:04"]

1. d4 {[%clk 0:03:00]}  g6 {[%clk 0:03:00]} 2. Nc3 {[%clk 0:02:58]}  Bg7 {[%clk 0:02:59]} 3. Bf4 {[%clk 0:02:59]}  d6 {[%clk 0:02:57]} 4. e3 {[%clk 0:02:59]}  Nd7 {[%clk 0:02:53]} 5. h4 {[%clk 0:02:56]}  h6 {[%clk 0:02:50]} 6. h5 {[%clk 0:02:56]}  g5 {[%clk 0:02:49]} 7. Bg3 {[%clk 0:02:56]}  Ngf6 {[%clk 0:02:44]} 8. Bc4 {[%clk 0:02:54]}  e6 {[%clk 0:02:43]} 9. Bb3 {[%clk 0:02:54]}  b6 {[%clk 0:02:40]} 10. f4 {[%clk 0:02:50]}  Bb7 {[%clk 0:02:31]} 11. Qe2 {[%clk 0:02:50]}  Ne4 {[%clk 0:02:20]} 12. Nxe4 {[%clk 0:02:48]}  Bxe4 {[%clk 0:02:21]} 13. O-O-O {[%clk 0:02:49]}  a5 {[%clk 0:02:01]} 14. a4 {[%clk 0:02:42]}  gxf4 {[%clk 0:01:39]} 15. exf4 {[%clk 0:02:33]}  d5 {[%clk 0:01:36]} 16. Nf3 {[%clk 0:02:32]}  O-O {[%clk 0:01:25]} 17. Ne5 {[%clk 0:02:25]}  c5 {[%clk 0:01:17]} 18. Bh4 {[%clk 0:02:23]}  Qc7 {[%clk 0:01:14]} 19. Nxd7 {[%clk 0:02:08]}  Qxd7 {[%clk 0:01:14]} 20. dxc5 {[%clk 0:02:09]}  Qc7 {[%clk 0:01:13]} 21. cxb6 {[%clk 0:01:52]}  Qxb6 {[%clk 0:01:03]} 22. Rh3 {[%clk 0:01:52]}  Rfc8 {[%clk 0:00:54]} 23. Bf2 {[%clk 0:00:54]}  Qb4 {[%clk 0:00:43]} 24. Rd2 {[%clk 0:00:16]}  Rab8 {[%clk 0:00:33]} 25. Rg3 {[%clk 0:00:15]}  Kf8 {[%clk 0:00:24]} 26. Rxg7 {[%clk 0:00:03]}  Qxb3 {[%clk 0:00:23]} 27. Bd4 {[%clk 0:00:02]}  Qxa4 {[%clk 0:00:20]} 28. Rd3 {[%clk 0:00:01]}  Bxd3 {[%clk 0:00:13]} 29. Qxd3 {[%clk 0:00:02]}  Rxc2+ {[%clk 0:00:13]} 30. Qxc2 {[%clk 0:00:02]}  Qxd4 {[%clk 0:00:14]} 31. Rg4 {[%clk 0:00:01]}  Qg1+ {[%clk 0:00:11]} 32. Kd2 {[%clk 0:00:01]}  Qf2+ {[%clk 0:00:12]} 33. Kd1 {[%clk 0:00:01]}  Qd4+ {[%clk 0:00:10]} 34. Kc1 {[%clk 0:00:01]}  Qg1+ {[%clk 0:00:08]} 35. Kd2 {[%clk 0:00:01]}  Qf2+ {[%clk 0:00:08]} 36. Kd1 {[%clk 0:00:02]}  Qxc2+ {[%clk 0:00:07]} 37. Kxc2 {[%clk 0:00:03]}  Rb4 {[%clk 0:00:07]} 38. g3 {[%clk 0:00:02]}  Rc4+ {[%clk 0:00:06]} 39. Kd2 {[%clk 0:00:03]}  a4 {[%clk 0:00:06]} 40. Rh4 {[%clk 0:00:03]}  e5 {[%clk 0:00:04]} 41. Rh1 {[%clk 0:00:01]}  exf4 {[%clk 0:00:04]} 42. gxf4 {[%clk 0:00:02]}  Rxf4 {[%clk 0:00:04]} 43. Ke3 {[%clk 0:00:03]}  Re4+ {[%clk 0:00:04]} 44. Kd3 {[%clk 0:00:03]}  Rb4 {[%clk 0:00:04]} 45. Kc3 {[%clk 0:00:03]}  Rc4+ {[%clk 0:00:03]} 46. Kd3 {[%clk 0:00:03]}  Ke7 {[%clk 0:00:03]} 47. Rf1 {[%clk 0:00:03]}  Rh4 {[%clk 0:00:02]} 48. Re1+ {[%clk 0:00:03]}  Kd6 {[%clk 0:00:02]} 49. Re8 {[%clk 0:00:03]}  Rxh5 {[%clk 0:00:02]} 50. Rb8 {[%clk 0:00:02]}  Rh3+ {[%clk 0:00:03]} 51. Kd4 {[%clk 0:00:02]}  Rh4+ {[%clk 0:00:03]} 52. Ke3 {[%clk 0:00:03]}  Rc4 {[%clk 0:00:03]} 53. Rb6+ {[%clk 0:00:03]}  Ke5 {[%clk 0:00:03]} 54. Rxh6 {[%clk 0:00:03]}  f5 {[%clk 0:00:04]} 55. Rh8 {[%clk 0:00:03]}  f4+ {[%clk 0:00:03]} 56. Kf3 {[%clk 0:00:04]}  Rb4 {[%clk 0:00:03]} 57. Re8+ {[%clk 0:00:04]}  Kd4 {[%clk 0:00:04]} 58. Ra8 {[%clk 0:00:03]}  Kd3 {[%clk 0:00:03]} 59. Ra5 {[%clk 0:00:03]}  d4 {[%clk 0:00:02]} 60. Kxf4 {[%clk 0:00:03]}  Kc2 {[%clk 0:00:03]} 61. Ke4 {[%clk 0:00:03]}  d3+ {[%clk 0:00:02]} 62. Ke3 {[%clk 0:00:03]}  d2 {[%clk 0:00:03]} 63. Rc5+ {[%clk 0:00:04]}  Kxb2 {[%clk 0:00:03]} 64. Kxd2 {[%clk 0:00:04]}  a3 {[%clk 0:00:03]} 65. Rc2+ {[%clk 0:00:04]}  Kb3 {[%clk 0:00:02]} 66. Rc3+ {[%clk 0:00:04]}  Ka4 {[%clk 0:00:02]} 67. Rc8 {[%clk 0:00:04]}  a2 {[%clk 0:00:03]} 68. Kc2 {[%clk 0:00:04]}  Ka3 {[%clk 0:00:02]} 69. Ra8+ {[%clk 0:00:02]}  Ra4 {[%clk 0:00:02]} 70. Rxa4+ {[%clk 0:00:03]}  Kxa4 {[%clk 0:00:03]} 71. Kb2 {[%clk 0:00:04]}  a1=Q+ {[%clk 0:00:04]} 72. Kxa1 {[%clk 0:00:05]} 1/2-1/2


[Site "https://www.chess.com"]

[Event "Titled Tuesday Blitz May 31 Late 2022"]
[White "Curtis, John"]
[Black "Mickiewicz, Piotr"]
[WhiteFideId "3200256"]
[BlackFideId "1114891"]
[WhiteElo "2203"]
[BlackElo "2223"]
[Result "1/2-1/2"]
[Round "11"]
[TimeControl "180+1"]
[Date "2022.06.01"]
[WhiteClock "0:00:45"]
[BlackClock "0:00:02"]

1. e4 {[%clk 0:03:00]}  c5 {[%clk 0:02:59]} 2. Nf3 {[%clk 0:02:59]}  d6 {[%clk 0:03:00]} 3. d4 {[%clk 0:02:59]}  cxd4 {[%clk 0:03:01]} 4. Nxd4 {[%clk 0:02:59]}  Nf6 {[%clk 0:03:01]} 5. Nc3 {[%clk 0:02:59]}  e6 {[%clk 0:03:02]} 6. Be2 {[%clk 0:02:58]}  a6 {[%clk 0:03:01]} 7. O-O {[%clk 0:02:54]}  Qc7 {[%clk 0:03:01]} 8. f4 {[%clk 0:02:55]}  Be7 {[%clk 0:03:01]} 9. Bf3 {[%clk 0:02:55]}  O-O {[%clk 0:02:59]} 10. Kh1 {[%clk 0:02:55]}  Nc6 {[%clk 0:02:55]} 11. Be3 {[%clk 0:02:44]}  Re8 {[%clk 0:02:54]} 12. Qe1 {[%clk 0:02:40]}  Bf8 {[%clk 0:02:51]} 13. Rd1 {[%clk 0:02:39]}  Nxd4 {[%clk 0:02:35]} 14. Bxd4 {[%clk 0:02:34]}  e5 {[%clk 0:02:34]} 15. Be3 {[%clk 0:02:25]}  exf4 {[%clk 0:02:30]} 16. Bxf4 {[%clk 0:02:25]}  Be6 {[%clk 0:02:02]} 17. Qg3 {[%clk 0:02:23]}  Rad8 {[%clk 0:01:43]} 18. e5 {[%clk 0:02:23]}  dxe5 {[%clk 0:01:36]} 19. Bxe5 {[%clk 0:02:22]}  Qe7 {[%clk 0:01:37]} 20. Rde1 {[%clk 0:02:03]}  b5 {[%clk 0:01:01]} 21. a3 {[%clk 0:01:54]}  Nd7 {[%clk 0:00:58]} 22. Bc7 {[%clk 0:01:47]}  Rc8 {[%clk 0:00:56]} 23. Bf4 {[%clk 0:01:41]}  Qc5 {[%clk 0:00:47]} 24. Rd1 {[%clk 0:01:32]}  Nf6 {[%clk 0:00:46]} 25. Be5 {[%clk 0:01:23]}  Nd7 {[%clk 0:00:39]} 26. Bd4 {[%clk 0:01:21]}  Qc7 {[%clk 0:00:35]} 27. Qxc7 {[%clk 0:01:16]}  Rxc7 {[%clk 0:00:36]} 28. Rd2 {[%clk 0:01:13]}  Bc5 {[%clk 0:00:35]} 29. Nd5 {[%clk 0:01:12]}  Bxd5 {[%clk 0:00:31]} 30. Bxd5 {[%clk 0:01:13]}  Re7 {[%clk 0:00:29]} 31. Bxc5 {[%clk 0:01:08]}  Rxc5 {[%clk 0:00:23]} 32. Bxf7+ {[%clk 0:01:00]}  Rxf7 {[%clk 0:00:22]} 33. Rxf7 {[%clk 0:01:00]}  Kxf7 {[%clk 0:00:22]} 34. Rxd7+ {[%clk 0:01:00]}  Ke6 {[%clk 0:00:20]} 35. Rd2 {[%clk 0:01:01]}  Re5 {[%clk 0:00:19]} 36. Kg1 {[%clk 0:01:01]}  a5 {[%clk 0:00:19]} 37. Kf2 {[%clk 0:01:01]}  Kf5 {[%clk 0:00:17]} 38. c3 {[%clk 0:00:59]}  h5 {[%clk 0:00:14]} 39. Rd4 {[%clk 0:00:55]}  g5 {[%clk 0:00:12]} 40. a4 {[%clk 0:00:55]}  h4 {[%clk 0:00:11]} 41. axb5 {[%clk 0:00:52]}  Rxb5 {[%clk 0:00:12]} 42. Ra4 {[%clk 0:00:52]}  Rxb2+ {[%clk 0:00:11]} 43. Kf1 {[%clk 0:00:50]}  Rb5 {[%clk 0:00:12]} 44. c4 {[%clk 0:00:50]}  Re5 {[%clk 0:00:11]} 45. Kf2 {[%clk 0:00:50]}  Ke4 {[%clk 0:00:11]} 46. c5+ {[%clk 0:00:49]}  Kd3 {[%clk 0:00:11]} 47. Rxa5 {[%clk 0:00:49]}  Rf5+ {[%clk 0:00:11]} 48. Ke1 {[%clk 0:00:48]}  Re5+ {[%clk 0:00:09]} 49. Kf1 {[%clk 0:00:47]}  Rf5+ {[%clk 0:00:09]} 50. Kg1 {[%clk 0:00:47]}  Ke2 {[%clk 0:00:08]} 51. Ra2+ {[%clk 0:00:47]}  Ke1 {[%clk 0:00:08]} 52. Ra1+ {[%clk 0:00:47]}  Ke2 {[%clk 0:00:08]} 53. Rc1 {[%clk 0:00:47]}  Kd2 {[%clk 0:00:08]} 54. Rf1 {[%clk 0:00:47]}  Rxc5 {[%clk 0:00:07]} 55. h3 {[%clk 0:00:47]}  Ke2 {[%clk 0:00:06]} 56. Rf6 {[%clk 0:00:47]}  Ke3 {[%clk 0:00:06]} 57. g3 {[%clk 0:00:47]}  Rc1+ {[%clk 0:00:05]} 58. Kg2 {[%clk 0:00:47]}  Rc2+ {[%clk 0:00:05]} 59. Kg1 {[%clk 0:00:45]}  hxg3 {[%clk 0:00:06]} 60. Rf5 {[%clk 0:00:45]}  Ra2 {[%clk 0:00:03]} 61. Rxg5 {[%clk 0:00:45]}  Kf4 {[%clk 0:00:03]} 62. Rg8 {[%clk 0:00:44]}  Ra1+ {[%clk 0:00:02]} 63. Kg2 {[%clk 0:00:44]}  Ra2+ {[%clk 0:00:03]} 64. Kg1 {[%clk 0:00:44]}  Ra3 {[%clk 0:00:02]} 65. Kg2 {[%clk 0:00:44]}  Ra2+ {[%clk 0:00:02]} 66. Kg1 {[%clk 0:00:45]} 1/2-1/2


[Site "https://www.chess.com"]

[Event "Titled Tuesday Blitz May 31 Late 2022"]
[White "Daeschler, Florian"]
[Black "Golubev, Mikhail"]
[WhiteFideId "20678193"]
[BlackFideId "14100983"]
[WhiteElo "2195"]
[BlackElo "2374"]
[Result "0-1"]
[Round "11"]
[TimeControl "180+1"]
[Date "2022.05.31"]
[WhiteClock "0:00:26"]
[BlackClock "0:00:33"]

1. d4 {[%clk 0:03:00]}  g6 {[%clk 0:02:59]} 2. c4 {[%clk 0:03:00]}  Bg7 {[%clk 0:03:00]} 3. Nc3 {[%clk 0:03:01]}  Nf6 {[%clk 0:03:00]} 4. e4 {[%clk 0:03:01]}  d6 {[%clk 0:03:01]} 5. Nf3 {[%clk 0:03:01]}  O-O {[%clk 0:03:01]} 6. Be2 {[%clk 0:03:01]}  e5 {[%clk 0:03:01]} 7. dxe5 {[%clk 0:03:00]}  dxe5 {[%clk 0:02:59]} 8. Qxd8 {[%clk 0:03:01]}  Rxd8 {[%clk 0:02:59]} 9. Bg5 {[%clk 0:03:02]}  c6 {[%clk 0:02:59]} 10. Nxe5 {[%clk 0:02:59]}  Re8 {[%clk 0:02:57]} 11. O-O-O {[%clk 0:02:45]}  Na6 {[%clk 0:02:55]} 12. f4 {[%clk 0:02:32]}  h6 {[%clk 0:02:51]} 13. Bh4 {[%clk 0:02:21]}  g5 {[%clk 0:02:51]} 14. fxg5 {[%clk 0:02:21]}  hxg5 {[%clk 0:02:49]} 15. Bxg5 {[%clk 0:02:15]}  Rxe5 {[%clk 0:02:33]} 16. Rd8+ {[%clk 0:02:08]}  Kh7 {[%clk 0:02:19]} 17. Bf4 {[%clk 0:01:58]}  Re8 {[%clk 0:02:15]} 18. Rd2 {[%clk 0:01:52]}  Nc5 {[%clk 0:02:09]} 19. e5 {[%clk 0:01:47]}  Nfe4 {[%clk 0:01:59]} 20. Nxe4 {[%clk 0:01:47]}  Nxe4 {[%clk 0:01:59]} 21. Bd3 {[%clk 0:01:48]}  Bf5 {[%clk 0:01:54]} 22. Re2 {[%clk 0:01:45]}  Bxe5 {[%clk 0:01:52]} 23. Rf1 {[%clk 0:01:32]}  Kg8 {[%clk 0:00:44]} 24. Bxe4 {[%clk 0:01:22]}  Bxe4 {[%clk 0:00:41]} 25. Rxe4 {[%clk 0:00:32]}  Bxb2+ {[%clk 0:00:40]} 26. Kxb2 {[%clk 0:00:33]}  Rxe4 {[%clk 0:00:40]} 27. Kc3 {[%clk 0:00:31]}  Re2 {[%clk 0:00:39]} 28. g4 {[%clk 0:00:30]}  Rxa2 {[%clk 0:00:34]} 29. Rf3 {[%clk 0:00:26]}  Ra3+ {[%clk 0:00:33]} 0-1


[Site "https://www.chess.com"]

[Event "Titled Tuesday Blitz May 31 Late 2022"]
[White "Demchenko, Anton"]
[Black "Urazayev, Arystanbek"]
[WhiteFideId "4160258"]
[BlackFideId "13709810"]
[WhiteElo "2539"]
[BlackElo "2422"]
[Result "1-0"]
[Round "11"]
[TimeControl "180+1"]
[Date "2022.05.31"]
[WhiteClock "0:00:05"]
[BlackClock "0:00:04"]

1. e4 {[%clk 0:03:00]}  c6 {[%clk 0:03:00]} 2. d4 {[%clk 0:03:01]}  d5 {[%clk 0:03:01]} 3. e5 {[%clk 0:03:01]}  c5 {[%clk 0:03:01]} 4. Nf3 {[%clk 0:03:01]}  cxd4 {[%clk 0:03:02]} 5. Nxd4 {[%clk 0:03:02]}  Nc6 {[%clk 0:03:02]} 6. Nxc6 {[%clk 0:03:03]}  bxc6 {[%clk 0:03:03]} 7. Bd3 {[%clk 0:03:03]}  e6 {[%clk 0:03:03]} 8. O-O {[%clk 0:03:04]}  Ne7 {[%clk 0:03:04]} 9. Nd2 {[%clk 0:03:04]}  a5 {[%clk 0:03:04]} 10. Qe2 {[%clk 0:03:03]}  Ng6 {[%clk 0:03:03]} 11. Nf3 {[%clk 0:03:04]}  Bc5 {[%clk 0:02:57]} 12. g3 {[%clk 0:02:34]}  Qb6 {[%clk 0:02:57]} 13. h4 {[%clk 0:02:31]}  Ne7 {[%clk 0:02:47]} 14. c4 {[%clk 0:02:21]}  Ba6 {[%clk 0:02:45]} 15. Kg2 {[%clk 0:02:16]}  h6 {[%clk 0:02:36]} 16. b3 {[%clk 0:02:12]}  dxc4 {[%clk 0:02:29]} 17. bxc4 {[%clk 0:02:01]}  Rd8 {[%clk 0:02:28]} 18. Rb1 {[%clk 0:01:58]}  Qa7 {[%clk 0:02:24]} 19. Bd2 {[%clk 0:01:43]}  a4 {[%clk 0:02:11]} 20. h5 {[%clk 0:01:26]}  Nf5 {[%clk 0:01:57]} 21. Bc3 {[%clk 0:01:13]}  Nd4 {[%clk 0:01:41]} 22. Bxd4 {[%clk 0:01:09]}  Bxd4 {[%clk 0:01:41]} 23. Rfd1 {[%clk 0:01:00]}  c5 {[%clk 0:01:35]} 24. Qe4 {[%clk 0:00:54]}  Qc7 {[%clk 0:01:09]} 25. Qf4 {[%clk 0:00:33]}  Bb7 {[%clk 0:01:06]} 26. Be4 {[%clk 0:00:34]}  Bc6 {[%clk 0:00:53]} 27. Re1 {[%clk 0:00:28]}  O-O {[%clk 0:00:50]} 28. Re2 {[%clk 0:00:24]}  a3 {[%clk 0:00:46]} 29. Rb3 {[%clk 0:00:23]}  Bb2 {[%clk 0:00:46]} 30. g4 {[%clk 0:00:14]}  f5 {[%clk 0:00:37]} 31. Bxc6 {[%clk 0:00:11]}  fxg4 {[%clk 0:00:29]} 32. Qxg4 {[%clk 0:00:11]}  Qxc6 {[%clk 0:00:29]} 33. Qe4 {[%clk 0:00:12]}  Qxe4 {[%clk 0:00:25]} 34. Rxe4 {[%clk 0:00:13]}  Rd1 {[%clk 0:00:25]} 35. Rb7 {[%clk 0:00:11]}  Rf7 {[%clk 0:00:24]} 36. Rb8+ {[%clk 0:00:11]}  Kh7 {[%clk 0:00:24]} 37. Nh4 {[%clk 0:00:10]}  Rfd7 {[%clk 0:00:19]} 38. Ng6 {[%clk 0:00:06]}  Rd8 {[%clk 0:00:19]} 39. Rb5 {[%clk 0:00:06]}  Ra1 {[%clk 0:00:17]} 40. Rf4 {[%clk 0:00:07]}  Rxa2 {[%clk 0:00:17]} 41. Rf7 {[%clk 0:00:06]}  Bd4 {[%clk 0:00:15]} 42. Rbb7 {[%clk 0:00:07]}  Rxf2+ {[%clk 0:00:06]} 43. Rxf2 {[%clk 0:00:07]}  Bxf2 {[%clk 0:00:06]} 44. Kxf2 {[%clk 0:00:06]}  Ra8 {[%clk 0:00:07]} 45. Rb1 {[%clk 0:00:05]}  Ra4 {[%clk 0:00:07]} 46. Ra1 {[%clk 0:00:05]}  a2 {[%clk 0:00:08]} 47. Ke3 {[%clk 0:00:06]}  Ra3+ {[%clk 0:00:07]} 48. Ke4 {[%clk 0:00:06]}  Rh3 {[%clk 0:00:06]} 49. Nf4 {[%clk 0:00:05]}  Ra3 {[%clk 0:00:06]} 50. Nxe6 {[%clk 0:00:05]}  g5 {[%clk 0:00:05]} 51. hxg6+ {[%clk 0:00:05]}  Kxg6 {[%clk 0:00:06]} 52. Nf4+ {[%clk 0:00:04]}  Kf7 {[%clk 0:00:05]} 53. Nd5 {[%clk 0:00:03]}  h5 {[%clk 0:00:05]} 54. Kf5 {[%clk 0:00:04]}  h4 {[%clk 0:00:05]} 55. e6+ {[%clk 0:00:05]}  Ke8 {[%clk 0:00:05]} 56. Kf6 {[%clk 0:00:04]}  Kd8 {[%clk 0:00:04]} 57. e7+ {[%clk 0:00:04]}  Kd7 {[%clk 0:00:04]} 58. Kf7 {[%clk 0:00:05]}  Rf3+ {[%clk 0:00:04]} 59. Nf6+ {[%clk 0:00:05]} 1-0


[Site "https://www.chess.com"]

[Event "Titled Tuesday Blitz May 31 Late 2022"]
[White "Diaz Rosas, Julio Cesar"]
[Black "Bas Mas, Jose Joaquin"]
[WhiteFideId "5105099"]
[BlackFideId "22219064"]
[WhiteElo "2278"]
[BlackElo "2233"]
[Result "1-0"]
[Round "11"]
[TimeControl "180+1"]
[Date "2022.05.31"]
[WhiteClock "0:00:40"]
[BlackClock "0:00:05"]

1. d4 {[%clk 0:03:00]}  f5 {[%clk 0:02:58]} 2. Nc3 {[%clk 0:03:00]}  Nf6 {[%clk 0:02:58]} 3. Bg5 {[%clk 0:02:55]}  d5 {[%clk 0:02:59]} 4. Nf3 {[%clk 0:02:52]}  Nc6 {[%clk 0:02:54]} 5. g3 {[%clk 0:02:51]}  Be6 {[%clk 0:02:52]} 6. Bg2 {[%clk 0:02:51]}  h6 {[%clk 0:02:50]} 7. Bf4 {[%clk 0:02:50]}  g5 {[%clk 0:02:48]} 8. Bc1 {[%clk 0:02:50]}  Ne4 {[%clk 0:02:46]} 9. O-O {[%clk 0:02:49]}  Bg7 {[%clk 0:02:45]} 10. e3 {[%clk 0:02:48]}  Qd7 {[%clk 0:02:42]} 11. Ne1 {[%clk 0:02:48]}  O-O {[%clk 0:02:38]} 12. Nd3 {[%clk 0:02:48]}  b6 {[%clk 0:02:36]} 13. f3 {[%clk 0:02:46]}  Nxc3 {[%clk 0:02:31]} 14. bxc3 {[%clk 0:02:47]}  Na5 {[%clk 0:02:30]} 15. a4 {[%clk 0:02:45]}  Nc4 {[%clk 0:02:27]} 16. Qe1 {[%clk 0:02:45]}  Bf7 {[%clk 0:02:23]} 17. Nb2 {[%clk 0:02:39]}  Rae8 {[%clk 0:02:17]} 18. Nxc4 {[%clk 0:02:35]}  dxc4 {[%clk 0:02:18]} 19. Ba3 {[%clk 0:02:36]}  Qxa4 {[%clk 0:02:03]} 20. Bxe7 {[%clk 0:02:31]}  Qxc2 {[%clk 0:02:03]} 21. Bxf8 {[%clk 0:02:30]}  Bxf8 {[%clk 0:02:01]} 22. e4 {[%clk 0:02:30]}  c5 {[%clk 0:01:58]} 23. Rf2 {[%clk 0:02:25]}  Qb3 {[%clk 0:01:48]} 24. d5 {[%clk 0:02:16]}  Bg7 {[%clk 0:01:37]} 25. Rxa7 {[%clk 0:02:07]}  Bxc3 {[%clk 0:01:31]} 26. Qc1 {[%clk 0:01:56]}  Bd4 {[%clk 0:01:29]} 27. h4 {[%clk 0:01:53]}  Qe3 {[%clk 0:01:20]} 28. Qc2 {[%clk 0:01:45]}  Qe1+ {[%clk 0:00:59]} 29. Bf1 {[%clk 0:01:44]}  Qxf2+ {[%clk 0:00:43]} 30. Qxf2 {[%clk 0:01:45]}  Bxf2+ {[%clk 0:00:43]} 31. Kxf2 {[%clk 0:01:43]}  fxe4 {[%clk 0:00:43]} 32. Bxc4 {[%clk 0:01:40]}  e3+ {[%clk 0:00:38]} 33. Ke2 {[%clk 0:01:40]}  gxh4 {[%clk 0:00:39]} 34. gxh4 {[%clk 0:01:39]}  Rb8 {[%clk 0:00:33]} 35. Bb5 {[%clk 0:01:24]}  Bxd5 {[%clk 0:00:29]} 36. Rd7 {[%clk 0:01:23]}  Bf7 {[%clk 0:00:20]} 37. Rd6 {[%clk 0:01:22]}  Kg7 {[%clk 0:00:20]} 38. Kxe3 {[%clk 0:01:20]}  c4 {[%clk 0:00:20]} 39. Rc6 {[%clk 0:01:16]}  Re8+ {[%clk 0:00:20]} 40. Kf4 {[%clk 0:01:13]}  Re6 {[%clk 0:00:18]} 41. Rc7 {[%clk 0:01:11]}  Rf6+ {[%clk 0:00:18]} 42. Ke3 {[%clk 0:01:09]}  Rf5 {[%clk 0:00:17]} 43. Bxc4 {[%clk 0:01:07]}  Kf8 {[%clk 0:00:17]} 44. Bd3 {[%clk 0:01:06]}  Re5+ {[%clk 0:00:16]} 45. Kf4 {[%clk 0:01:05]}  Re6 {[%clk 0:00:16]} 46. Be4 {[%clk 0:01:03]}  Rf6+ {[%clk 0:00:16]} 47. Ke5 {[%clk 0:01:02]}  Re6+ {[%clk 0:00:17]} 48. Kf5 {[%clk 0:01:03]}  Rd6 {[%clk 0:00:17]} 49. f4 {[%clk 0:01:00]}  Bc4 {[%clk 0:00:17]} 50. Ke5 {[%clk 0:00:59]}  Re6+ {[%clk 0:00:15]} 51. Kf5 {[%clk 0:00:58]}  b5 {[%clk 0:00:15]} 52. Bf3 {[%clk 0:00:56]}  Rd6 {[%clk 0:00:13]} 53. Ke5 {[%clk 0:00:56]}  Rg6 {[%clk 0:00:12]} 54. Be4 {[%clk 0:00:54]}  Rg7 {[%clk 0:00:12]} 55. Rc5 {[%clk 0:00:53]}  Re7+ {[%clk 0:00:12]} 56. Kd4 {[%clk 0:00:53]}  Rd7+ {[%clk 0:00:12]} 57. Ke5 {[%clk 0:00:52]}  Re7+ {[%clk 0:00:12]} 58. Kf5 {[%clk 0:00:52]}  Rf7+ {[%clk 0:00:13]} 59. Kg4 {[%clk 0:00:50]}  Rg7+ {[%clk 0:00:13]} 60. Kf3 {[%clk 0:00:50]}  Re7 {[%clk 0:00:13]} 61. f5 {[%clk 0:00:49]}  Kf7 {[%clk 0:00:13]} 62. Kf4 {[%clk 0:00:49]}  Ra7 {[%clk 0:00:11]} 63. Rc6 {[%clk 0:00:47]}  Bb3 {[%clk 0:00:09]} 64. Rxh6 {[%clk 0:00:46]}  Ra1 {[%clk 0:00:08]} 65. Rb6 {[%clk 0:00:44]}  Bc4 {[%clk 0:00:08]} 66. Ke5 {[%clk 0:00:44]}  Rg1 {[%clk 0:00:07]} 67. Rb7+ {[%clk 0:00:43]}  Kf8 {[%clk 0:00:08]} 68. Kf6 {[%clk 0:00:43]}  Ke8 {[%clk 0:00:08]} 69. Bc6+ {[%clk 0:00:42]}  Kd8 {[%clk 0:00:08]} 70. Bxb5 {[%clk 0:00:42]}  Rb1 {[%clk 0:00:06]} 71. Bc6 {[%clk 0:00:41]}  Rxb7 {[%clk 0:00:06]} 72. Bxb7 {[%clk 0:00:42]}  Ke8 {[%clk 0:00:06]} 73. Kg7 {[%clk 0:00:42]}  Bf7 {[%clk 0:00:06]} 74. f6 {[%clk 0:00:40]}  Bh5 {[%clk 0:00:06]} 75. Bd5 {[%clk 0:00:40]}  Kd7 {[%clk 0:00:06]} 76. f7 {[%clk 0:00:40]}  Bxf7 {[%clk 0:00:05]} 77. Bxf7 {[%clk 0:00:40]} 1-0


[Site "https://www.chess.com"]

[Event "Titled Tuesday Blitz May 31 Late 2022"]
[White "Djokic, Mihailo"]
[Black "Martin Carmona, Gaston Manuel"]
[WhiteFideId "976440"]
[BlackFideId "22284567"]
[WhiteElo "2202"]
[BlackElo "2162"]
[Result "0-1"]
[Round "11"]
[TimeControl "180+1"]
[Date "2022.05.31"]
[WhiteClock "0:02:11"]
[BlackClock "0:02:01"]

1. e4 {[%clk 0:03:00]}  c5 {[%clk 0:02:56]} 2. Nf3 {[%clk 0:03:00]}  d6 {[%clk 0:02:56]} 3. d4 {[%clk 0:03:01]}  cxd4 {[%clk 0:02:57]} 4. Nxd4 {[%clk 0:03:01]}  Nf6 {[%clk 0:02:58]} 5. Nc3 {[%clk 0:03:02]}  g6 {[%clk 0:02:59]} 6. Be3 {[%clk 0:03:00]}  Bg7 {[%clk 0:02:59]} 7. f3 {[%clk 0:03:01]}  Nc6 {[%clk 0:03:00]} 8. Qd2 {[%clk 0:03:02]}  O-O {[%clk 0:03:00]} 9. O-O-O {[%clk 0:03:02]}  d5 {[%clk 0:03:01]} 10. Qe1 {[%clk 0:03:02]}  e5 {[%clk 0:03:00]} 11. Nxc6 {[%clk 0:03:00]}  bxc6 {[%clk 0:03:00]} 12. exd5 {[%clk 0:03:00]}  Nxd5 {[%clk 0:03:01]} 13. Bc4 {[%clk 0:03:00]}  Be6 {[%clk 0:02:59]} 14. Ne4 {[%clk 0:03:01]}  Qc7 {[%clk 0:02:33]} 15. Bc5 {[%clk 0:02:59]}  Rfd8 {[%clk 0:02:30]} 16. h4 {[%clk 0:02:59]}  Nf4 {[%clk 0:02:25]} 17. Bxe6 {[%clk 0:02:55]}  Rxd1+ {[%clk 0:02:24]} 18. Qxd1 {[%clk 0:02:56]}  Nxe6 {[%clk 0:02:25]} 19. Bd6 {[%clk 0:02:56]}  Qb6 {[%clk 0:02:23]} 20. h5 {[%clk 0:02:56]}  f5 {[%clk 0:02:11]} 21. Nc3 {[%clk 0:02:40]}  Rd8 {[%clk 0:02:10]} 22. hxg6 {[%clk 0:02:30]}  hxg6 {[%clk 0:02:09]} 23. Qd3 {[%clk 0:02:27]}  Qd4 {[%clk 0:02:03]} 24. Be7 {[%clk 0:02:11]}  Qf4+ {[%clk 0:02:01]} 0-1


[Site "https://www.chess.com"]